[Event "Begum Laila Alam 12th Women 2022"]
[Site "Dhaka"]
[Date "2022.05.06"]
[Round "2.2"]
[White "Sultana, Sharmin Shirin"]
[Black "Aeon, Sarker"]
[Result "1-0"]
[ECO "D37"]
[WhiteElo "1992"]
[BlackElo "1516"]
[Annotator "TA RC"]
[PlyCount "41"]
[EventDate "2022.05.05"]
[EventType "swiss"]
[EventCountry "BAN"]
[SourceTitle "playchess.com"]
[Source "ChessBase"]
[SourceQuality "1"]
[TimeControl "5400+30"]

{[%evp 14,41,26,10,31,21,67,26,100,90,106,104,101,106,119,111,126,125,160,154,277,223,361,356,441,441,436,350,539,401]} 1. d4 {[%emt 0:00:04]} d5 {[%emt 0:00:17]} 2. c4 {[%emt 0:00:10]} e6 {[%emt 0:00:15]} 3. Nc3 {[%emt 0:00:15]} Nf6 {[%emt 0:00:34]} 4. Nf3 {[%emt 0:00:29]} Be7 {[%emt 0:01:04]} 5. Bf4 {[%emt 0:00:34]} c6 {[%emt 0:04:08]} 6. e3 {[%emt 0:00:49]} O-O {[%emt 0:00:34]} 7. Rc1 {[%emt 0:01:03]} Nbd7 {[%emt 0:05:18]} 8. h3 {[%emt 0:07:22]} Qa5 {[%emt 0:09:20] D37: Queen's Gambit Declined: 5 Bf4.} 9. Nd2 {[%emt 0:07:16]} Bb4 {[%emt 0:28:08] [#]} (9... Ne4 $11) 10. Qc2 $146 {[%emt 0:14:16]} ({Predecessor:} 10. a3 Bxc3 11. Rxc3 Ne4 12. Nxe4 dxe4 13. b4 Qf5 14. Be2 Qg6 15. O-O Rd8 16. Bh5 {1-0 (46) Birjukov,S (2280)-Hodokainen,J Savonlinna 1996}) 10... Nh5 {[%emt 0:07:53]} (10... dxc4 $11 11. Nxc4 (11. Bxc4 e5 $14) 11... Qxa2) 11. Bh2 $16 {[%emt 0:04:07]} g6 {[%emt 0:06:44]} 12. Be2 {[%emt 0:04:24]} Ng7 {[%emt 0:01:13]} 13. O-O {[%emt 0:01:02][%cal Bh1f1,Bf1d1,Bd1d5][%mdl 32]} Re8 {[%emt 0:07:05]} 14. Nf3 {[%emt 0:03:57]} (14. Rfd1 {feels hotter.} Nf5 15. Bd3 Qd8 16. cxd5 exd5 17. Bxf5 gxf5 18. Qxf5 Qf6 19. Qf3) 14... f6 {[%emt 0:07:02]} 15. Rfd1 {[%emt 0:06:18] White is more active.} Bxc3 {[%emt 0:04:37]} 16. bxc3 {[%emt 0:00:04][%cal Bb2c3,Bc3c4][%mdl 32]} e5 {[%emt 0:03:42]} (16... Nb6 $16 {was called for.}) 17. dxe5 {[%emt 0:02:05]} fxe5 {[%emt 0:00:16]} (17... Nxe5 $142 18. Nxe5 fxe5 19. cxd5 cxd5) 18. cxd5 $18 {[%emt 0:01:05]} cxd5 {[%emt 0:00:12]} 19. c4 {[%emt 0:00:53]} e4 {[%emt 0:04:42]} 20. Rxd5 {[%emt 0:01:52]} Qb6 {[%emt 0:01:13]} (20... Nc5 $142 21. Nd2 Qa3) 21. Nd2 {[%emt 0:04:01] White took control after the opening.  Weighted Error Value: White=0.15 (very precise) /Black=0.59} 1-0

[Event "Begum Laila Alam 12th Women 2022"]
[Site "Dhaka"]
[Date "2022.05.06"]
[Round "2.3"]
[White "Nusrat, Jahan Liza"]
[Black "Khan, Nazrana"]
[Result "0-1"]
[ECO "B40"]
[WhiteElo "1541"]
[BlackElo "1829"]
[Annotator "NA RC COMBH"]
[PlyCount "100"]
[EventDate "2022.05.05"]
[EventType "swiss"]
[EventCountry "BAN"]
[SourceTitle "playchess.com"]
[Source "ChessBase"]
[SourceQuality "1"]
[TimeControl "5400+30"]

1. e4 {[%emt 0:00:04]} c5 {[%emt 0:01:26]} 2. Nf3 {[%emt 0:00:03]} e6 {[%emt 0:00:15]} 3. Bc4 {[%emt 0:00:36]} a6 {[%emt 0:00:26]} 4. a3 {[%emt 0:00:07]} Nc6 {[%emt 0:00:52]} 5. d3 {[%emt 0:00:27]} Qc7 {[%emt 0:01:20]} 6. Nc3 {[%emt 0:01:44]} Nf6 {[%emt 0:00:38]} 7. Bg5 {[%emt 0:00:29]} Be7 {[%emt 0:00:36]} 8. Qd2 {[%emt 0:03:05]} O-O {[%emt 0:02:25]} 9. O-O {[%emt 0:02:58]} b5 {[%emt 0:06:47]} 10. Ba2 {[%emt 0:01:04]} Bb7 {[%emt 0:02:12]} 11. Bf4 {[%emt 0:01:09]} d6 {[%emt 0:02:30]} 12. Ne2 {[%emt 0:02:49]} Kh8 {[%emt 0:04:28]} 13. Ng3 {[%emt 0:01:22]} Rac8 {[%emt 0:03:49]} 14. Rfe1 {[%emt 0:01:25]} Ne5 {[%emt 0:07:08]} 15. Qe2 {[%emt 0:03:37]} Ng6 {[%emt 0:04:46]} 16. Bg5 {[%emt 0:03:59]} Ng4 {[%emt 0:04:35]} 17. h3 {[%emt 0:05:11]} N4e5 {[%emt 0:01:49]} 18. Bxe7 {[%emt 0:05:39]} Qxe7 {[%emt 0:01:18]} 19. Nxe5 {[%emt 0:00:05]} dxe5 {[%emt 0:01:57]} 20. Qg4 {[%emt 0:02:02]} Qh4 {[%emt 0:05:34]} 21. Qxh4 {[%emt 0:04:39]} Nxh4 {[%emt 0:00:22]} 22. Nh5 {[%emt 0:02:25]} Rce8 {[%emt 0:06:01]} 23. Re3 {[%emt 0:00:30]} f5 {[%emt 0:03:51]} 24. f4 {[%emt 0:19:04]} fxe4 {[%emt 0:07:33]} 25. fxe5 {[%emt 0:02:51]} Nf5 {[%emt 0:06:13]} 26. Ree1 {[%emt 0:04:06]} Nd4 {[%emt 0:01:24]} 27. Rac1 {[%emt 0:01:46]} Rf5 {[%emt 0:03:34]} 28. Ng3 {[%emt 0:01:48]} Rxe5 {[%emt 0:00:27]} 29. c3 {[%emt 0:01:30]} Rg5 {[%emt 0:03:18]} 30. Kh2 {[%emt 0:03:29]} exd3 {[%emt 0:03:26]} 31. Rcd1 {[%emt 0:04:52]} Ne2 {[%emt 0:01:40]} 32. Rxd3 {[%emt 0:00:52]} Rxg3 {[%emt 0:01:46]} 33. Rxg3 {[%emt 0:00:09]} Nxg3 {[%emt 0:00:08]} 34. Kxg3 {[%emt 0:00:04]} c4 {[%emt 0:00:13]} 35. a4 {[%emt 0:01:17]} Bd5 {[%emt 0:00:56]} 36. a5 {[%emt 0:01:53]} Rf8 {[%emt 0:00:39]} 37. Bb1 {[%emt 0:00:25]} Kg8 {[%emt 0:01:19]} 38. Bc2 {[%emt 0:01:08]} Rf6 {[%emt 0:00:35]} 39. Be4 {[%emt 0:01:53]} Bxe4 {[%emt 0:00:47]} 40. Rxe4 {[%emt 0:00:02]} Kf7 {[%emt 0:00:17]} 41. Rf4 {[%emt 0:00:03]} Ke7 {[%emt 0:00:31]} 42. Rxf6 {[%emt 0:00:11]} gxf6 {[%emt 0:01:00]} 43. Kf4 {[%emt 0:00:27]} Kf7 {[%emt 0:00:37]} 44. g4 {[%emt 0:00:26]} Kg6 {[%emt 0:00:28]} 45. h4 {[%emt 0:00:22]} h5 {[%emt 0:00:56]} 46. Kf3 {[%emt 0:00:59]} hxg4+ {[%emt 0:00:40]} 47. Kxg4 {[%emt 0:00:02]} f5+ {[%emt 0:00:11]} 48. Kf3 {[%emt 0:01:04]} e5 {[%emt 0:00:09]} 49. Kg3 {[%emt 0:08:21]} Kh5 {[%emt 0:00:16]} 50. Kh3 {[%emt 0:00:25]} f4 {[%emt 0:00:10]} 0-1

[Event "Begum Laila Alam 12th Women 2022"]
[Site "Dhaka"]
[Date "2022.05.06"]
[Round "2.5"]
[White "Hamid, Rani"]
[Black "Sharmin, Khan"]
[Result "1-0"]
[ECO "B12"]
[WhiteElo "1783"]
[BlackElo "1309"]
[Annotator "NA RC COMBH"]
[PlyCount "49"]
[EventDate "2022.05.05"]
[EventType "swiss"]
[EventCountry "BAN"]
[SourceTitle "playchess.com"]
[Source "ChessBase"]
[SourceQuality "1"]
[TimeControl "5400+30"]

1. e4 {[%emt 0:06:05]} c6 {[%emt 0:00:09]} 2. d4 {[%emt 0:00:08]} d5 {[%emt 0:00:12]} 3. e5 {[%emt 0:00:14]} Bf5 {[%emt 0:00:16]} 4. Nf3 {[%emt 0:00:08]} e6 {[%emt 0:00:41]} 5. Bd3 {[%emt 0:01:13]} Bxd3 {[%emt 0:00:45]} 6. Qxd3 {[%emt 0:00:00]} Ne7 {[%emt 0:05:09]} 7. Nc3 {[%emt 0:01:23]} Nf5 {[%emt 0:01:00]} 8. Ne2 {[%emt 0:01:00]} h6 {[%emt 0:01:28]} 9. Bd2 {[%emt 0:02:02]} Be7 {[%emt 0:01:01]} 10. Qb3 {[%emt 0:03:11]} Qc7 {[%emt 0:00:57]} 11. h4 {[%emt 0:01:44]} h5 {[%emt 0:04:24]} 12. Ng3 {[%emt 0:02:25]} Nxg3 {[%emt 0:01:24]} 13. fxg3 {[%emt 0:00:02]} Nd7 {[%emt 0:03:50]} 14. Bg5 {[%emt 0:03:17]} Nb6 {[%emt 0:01:58]} 15. O-O {[%emt 0:00:48]} O-O {[%emt 0:02:05]} 16. Qd3 {[%emt 0:01:31]} Rfe8 {[%emt 0:04:48]} 17. b3 {[%emt 0:00:59]} c5 {[%emt 0:02:49]} 18. Bxe7 {[%emt 0:03:06]} Qxe7 {[%emt 0:00:38]} 19. Ng5 {[%emt 0:00:25]} g6 {[%emt 0:01:43]} 20. Rxf7 {[%emt 0:01:08]} Qxf7 {[%emt 0:01:19]} 21. Nxf7 {[%emt 0:00:08]} Kxf7 {[%emt 0:00:06]} 22. Rf1+ {[%emt 0:00:11]} Kg7 {[%emt 0:00:30]} 23. Rf6 {[%emt 0:00:04]} Kg8 {[%emt 0:01:40]} 24. Qxg6+ {[%emt 0:00:16]} Kh8 {[%emt 0:00:25]} 25. Rf7 {[%emt 0:00:10]} 1-0

[Event "Begum Laila Alam 12th Women 2022"]
[Site "Dhaka"]
[Date "2022.05.07"]
[Round "3.1"]
[White "Tasnia Tarannum, Orpa"]
[Black "Sultana, Sharmin Shirin"]
[Result "0-1"]
[ECO "A12"]
[WhiteElo "1691"]
[BlackElo "1992"]
[Annotator "TA"]
[PlyCount "94"]
[EventDate "2022.05.05"]
[EventType "swiss"]
[EventCountry "BAN"]
[SourceTitle "playchess.com"]
[Source "ChessBase"]
[SourceQuality "1"]
[TimeControl "5400+30"]

{[%evp 22,94,-2,-3,0,0,9,15,16,-8,24,18,20,16,23,15,22,10,6,-18,-20,-42,-34,-44,-15,-57,-52,-65,-44,-41,-24,-23,0,-56,-18,-44,-44,-44,-45,-68,-63,-52,-39,-48,-45,-77,-79,-100,-95,-97,-97,-92,-78,-79,-68,-68,-51,-112,-65,-60,-47,-47,-47,-61,-66,-97,-71,-93,-93,-92,-87,-145,-66,-29986,-29985]} 1. Nf3 {[%emt 0:00:04]} d5 {[%emt 0:00:45]} 2. g3 {[%emt 0:00:04]} Nf6 {[%emt 0:00:07]} 3. Bg2 {[%emt 0:00:04]} Bf5 {[%emt 0:00:45]} 4. c4 {[%emt 0:00:08]} c6 {[%emt 0:01:55]} 5. b3 {[%emt 0:01:28]} Nbd7 {[%emt 0:02:33]} 6. Bb2 {[%emt 0:00:07]} e6 {[%emt 0:00:46]} 7. O-O {[%emt 0:00:06]} Be7 {[%emt 0:02:28]} 8. d3 {[%emt 0:00:08]} O-O {[%emt 0:00:58]} 9. Nbd2 {[%emt 0:00:05]} a5 {[%emt 0:01:09]} 10. a3 {[%emt 0:01:02]} h6 {[%emt 0:01:20]} 11. Qc2 {[%emt 0:00:18]} Bh7 {[%emt 0:02:08]} 12. Ne5 {[%emt 0:00:07]} Nxe5 {[%emt 0:05:25] A12: English Opening: 1...c6 with b3 by White.} 13. Bxe5 {[%emt 0:00:03]} Nd7 {[%emt 0:00:16]} 14. Bc3 {[%emt 0:02:44]} Bf6 {[%emt 0:02:07] The position is equal.} 15. Nf3 {[%emt 0:04:51] [#]} Bxc3 $146 {[%emt 0:09:05]} ({Predecessor:} 15... Re8 16. Rfb1 Bxc3 17. Qxc3 Qf6 18. Qxf6 Nxf6 19. Ne5 Red8 20. b4 axb4 21. axb4 dxc4 22. Nxc4 {1-0 (52) Yeletsky,I (2460)-Lehtosaari,M (2199) Chess.com INT 2021}) 16. Qxc3 {[%emt 0:00:02]} Qf6 {[%emt 0:00:27]} 17. Qxf6 {[%emt 0:05:10]} Nxf6 {[%emt 0:00:03]} 18. Ne5 {[%emt 0:00:22]} Rfd8 {[%emt 0:03:13]} 19. b4 {[%emt 0:02:46]} Ne8 {[%emt 0:06:21]} 20. f4 {[%emt 0:05:13]} f6 {[%emt 0:07:12]} 21. Nf3 {[%emt 0:02:54]} dxc4 {[%emt 0:03:19]} 22. dxc4 {[%emt 0:00:40]} Be4 {[%emt 0:02:49]} 23. Bh3 {[%emt 0:19:45]} Kf7 {[%emt 0:01:44]} 24. Rad1 {[%emt 0:05:46]} Bxf3 {[%emt 0:00:48]} 25. exf3 {[%emt 0:00:52]} axb4 {[%emt 0:03:14]} 26. axb4 {[%emt 0:00:58]} f5 {[%emt 0:01:55]} 27. Rfe1 {[%emt 0:04:37]} (27. Rxd8 $1 $11 Rxd8 28. Ra1) 27... Nc7 {[%emt 0:08:30]} 28. Bf1 {[%emt 0:02:32]} Rxd1 {[%emt 0:05:20]} 29. Rxd1 $15 {[%emt 0:00:09][%mdl 4096] Endgame Hoping for Rd7+. KRB-KRN} Ke7 {[%emt 0:00:07] Inhibits Rd7+.} 30. Rb1 {[%emt 0:10:22]} Ra3 {[%emt 0:05:06]} 31. Kf2 {[%emt 0:05:19]} g5 {[%emt 0:05:15]} 32. fxg5 {[%emt 0:01:57]} hxg5 {[%emt 0:00:01][%cal Bh6g5,Bg5g4][%mdl 32]} 33. f4 {[%emt 0:01:24]} Ra2+ {[%emt 0:02:50]} 34. Be2 {[%emt 0:05:21] [#]} g4 $1 {[%emt 0:00:29]} 35. b5 {[%emt 0:05:32]} cxb5 {[%emt 0:00:34]} 36. cxb5 {[%emt 0:00:01]} Nd5 {[%emt 0:00:09]} 37. Rc1 {[%emt 0:00:23]} Kd6 {[%emt 0:02:06]} 38. Ke1 {[%emt 0:03:33]} Rb2 {[%emt 0:00:38]} 39. Rd1 {[%emt 0:01:57]} ({Better is} 39. Rc8 $1 $15) 39... Rc2 {[%emt 0:04:02]} (39... b6 $17) 40. Rd2 {[%emt 0:02:40]} Rc1+ {[%emt 0:00:32]} 41. Kf2 {[%emt 0:00:35]} Kc5 {[%emt 0:00:24]} 42. Kg2 {[%emt 0:03:20]} Nc3 {[%emt 0:02:54]} 43. Rb2 {[%emt 0:00:53]} b6 {[%emt 0:02:47]} 44. Kf2 {[%emt 0:04:27]} Rh1 {[%emt 0:02:53]} 45. Kg2 {[%emt 0:01:25]} Re1 {[%emt 0:00:29] Black is more active.} 46. Bf1 {[%emt 0:00:29] [#]} (46. Bd3 $142) 46... Rc1 {[%emt 0:02:10]} (46... Nd1 $1 $17 {[%cal Rd1b2]} 47. Rc2+ Kb4 48. Rc4+ Ka5) 47. Kf2 $2 {[%emt 0:00:20][%mdl 8192]} (47. Kg1 $15) 47... Nd1+ {[%emt 0:00:05] Weighted Error Value: White=0.42/Black=0.12 (very precise)} 0-1

[Event "Begum Laila Alam 12th Women 2022"]
[Site "Dhaka"]
[Date "2022.05.07"]
[Round "3.2"]
[White "Khan, Nazrana"]
[Black "Israt, Jahan Diba"]
[Result "1/2-1/2"]
[ECO "D37"]
[WhiteElo "1829"]
[BlackElo "1757"]
[Annotator "NA RC COMBH"]
[PlyCount "140"]
[EventDate "2022.05.05"]
[EventType "swiss"]
[EventCountry "BAN"]
[SourceTitle "playchess.com"]
[Source "ChessBase"]
[SourceQuality "1"]
[TimeControl "5400+30"]

1. d4 {[%emt 0:00:04]} d5 {[%emt 0:02:02]} 2. c4 {[%emt 0:00:06]} e6 {[%emt 0:00:06]} 3. Nc3 {[%emt 0:00:08]} Nf6 {[%emt 0:00:12]} 4. Nf3 {[%emt 0:00:14]} Be7 {[%emt 0:00:37]} 5. Bf4 {[%emt 0:00:14]} O-O {[%emt 0:00:22]} 6. a3 {[%emt 0:00:12]} c5 {[%emt 0:01:21]} (6... b6 $11) 7. dxc5 {[%emt 0:00:23]} Bxc5 {[%emt 0:00:23]} 8. e3 {[%emt 0:00:33]} Nc6 {[%emt 0:00:45]} 9. Qc2 {[%emt 0:00:40]} Re8 {[%emt 0:01:42]} 10. Rd1 {[%emt 0:03:28]} e5 {[%emt 0:01:27]} 11. Bg5 {[%emt 0:04:14]} d4 {[%emt 0:02:21]} 12. Nd5 {[%emt 0:04:06]} Be7 {[%emt 0:01:09]} 13. Bxf6 {[%emt 0:04:41]} Bxf6 {[%emt 0:01:09]} 14. Be2 {[%emt 0:03:30]} g6 {[%emt 0:23:38]} 15. Nxf6+ {[%emt 0:06:55]} Qxf6 {[%emt 0:01:20]} 16. O-O {[%emt 0:02:46]} Bf5 {[%emt 0:03:09]} 17. e4 {[%emt 0:02:57]} Be6 {[%emt 0:06:07]} 18. b4 {[%emt 0:04:43]} Rac8 {[%emt 0:03:15]} 19. Qd2 $11 {[%emt 0:01:53]} Nd8 {[%emt 0:13:47]} 20. Rc1 {[%emt 0:01:20]} Bd7 {[%emt 0:01:49]} 21. Ne1 {[%emt 0:03:07]} Ne6 {[%emt 0:02:55]} 22. Nd3 {[%emt 0:04:58]} g5 {[%emt 0:10:07]} 23. Bg4 {[%emt 0:04:03]} Rc7 {[%emt 0:02:36]} 24. f3 {[%emt 0:04:58]} Nf4 {[%emt 0:07:55]} 25. Nxf4 {[%emt 0:06:20]} Qxf4 {[%emt 0:01:54]} 26. Qxf4 {[%emt 0:01:28]} gxf4 {[%emt 0:00:14]} 27. Bxd7 {[%emt 0:01:24]} Rxd7 {[%emt 0:00:02]} 28. Rfd1 {[%emt 0:00:30]} Rc8 {[%emt 0:00:55]} 29. g3 {[%emt 0:02:58]} fxg3 {[%emt 0:00:51]} 30. hxg3 {[%emt 0:00:11]} Rdc7 {[%emt 0:00:37]} 31. f4 {[%emt 0:04:29]} f6 {[%emt 0:01:50]} 32. fxe5 {[%emt 0:01:58]} fxe5 {[%emt 0:00:03]} 33. Rf1 {[%emt 0:05:45]} Rxc4 {[%emt 0:01:18]} 34. Rxc4 {[%emt 0:00:12]} Rxc4 {[%emt 0:00:04]} 35. Kf2 {[%emt 0:03:36]} Rc3 {[%emt 0:00:30]} 36. a4 {[%emt 0:01:16]} Rb3 {[%emt 0:02:53]} 37. b5 {[%emt 0:00:29]} a6 {[%emt 0:01:28]} 38. bxa6 {[%emt 0:00:58]} bxa6 {[%emt 0:00:02]} 39. Rc1 {[%emt 0:00:19]} Rc3 {[%emt 0:00:55]} 40. Rxc3 {[%emt 0:01:37]} dxc3 {[%emt 0:00:02]} 41. Ke3 {[%emt 0:00:11]} c2 {[%emt 0:05:07]} 42. Kd2 {[%emt 0:00:10]} c1=Q+ {[%emt 0:00:57]} 43. Kxc1 {[%emt 0:00:07]} Kf7 {[%emt 0:00:26]} 44. Kd2 {[%emt 0:00:22]} Kf6 {[%emt 0:00:45]} 45. Kc3 {[%emt 0:03:40]} Kg5 {[%emt 0:00:20]} 46. Kc4 {[%emt 0:02:04]} Kg4 {[%emt 0:00:27]} 47. Kd5 {[%emt 0:00:15]} Kxg3 {[%emt 0:00:11]} 48. Kxe5 {[%emt 0:00:33]} h5 {[%emt 0:00:25]} 49. Kd6 {[%emt 0:00:25]} h4 {[%emt 0:00:32]} 50. e5 {[%emt 0:00:05]} h3 {[%emt 0:00:05]} 51. e6 {[%emt 0:00:11]} h2 {[%emt 0:00:02]} 52. e7 {[%emt 0:00:17]} h1=Q {[%emt 0:00:08]} 53. e8=Q {[%emt 0:00:10]} Qd1+ {[%emt 0:00:46]} 54. Kc7 {[%emt 0:00:47]} Qc2+ {[%emt 0:02:26]} 55. Qc6 {[%emt 0:01:08]} Qe2 {[%emt 0:00:43]} 56. Kb7 {[%emt 0:00:54]} Kf4 {[%emt 0:00:38]} 57. Qf6+ {[%emt 0:00:40]} Kg3 {[%emt 0:00:30]} 58. Qxa6 {[%emt 0:00:32]} Qe7+ {[%emt 0:00:15]} 59. Kb6 {[%emt 0:02:42]} Qd6+ {[%emt 0:00:25]} 60. Ka5 {[%emt 0:00:48]} Qc5+ {[%emt 0:00:34]} 61. Qb5 {[%emt 0:00:26]} Qc3+ {[%emt 0:00:27]} 62. Kb6 {[%emt 0:01:25]} Qd4+ {[%emt 0:00:17]} 63. Kc7 {[%emt 0:01:07]} Qa7+ {[%emt 0:00:27]} 64. Kc8 {[%emt 0:00:20]} Qf7 {[%emt 0:01:08]} 65. Qb8+ {[%emt 0:01:05]} Kg4 {[%emt 0:00:22]} 66. Qb4+ {[%emt 0:00:30]} Kg3 {[%emt 0:00:26]} 67. Qd6+ {[%emt 0:00:30]} Kf3 {[%emt 0:00:29]} 68. Qc6+ {[%emt 0:00:29]} Ke3 {[%emt 0:00:25]} 69. a5 {[%emt 0:00:31]} Qf5+ {[%emt 0:00:27]} 70. Qd7 {[%emt 0:02:01]} Qxa5 {[%emt 0:00:13]} 1/2-1/2

[Event "Begum Laila Alam 12th Women 2022"]
[Site "Dhaka"]
[Date "2022.05.07"]
[Round "3.3"]
[White "Wadifa, Ahmed"]
[Black "Nusrat Jahan, Alo"]
[Result "0-1"]
[ECO "B12"]
[WhiteElo "1791"]
[BlackElo "1652"]
[Annotator "NA COMBH"]
[PlyCount "80"]
[EventDate "2022.05.05"]
[EventType "swiss"]
[EventCountry "BAN"]
[SourceTitle "playchess.com"]
[Source "ChessBase"]
[SourceQuality "1"]
[TimeControl "5400+30"]

1. e4 {[%emt 0:04:14]} c6 {[%emt 0:00:11]} 2. d4 {[%emt 0:00:15]} d5 {[%emt 0:00:11]} 3. e5 {[%emt 0:00:01]} Bf5 {[%emt 0:00:12]} 4. Nf3 {[%emt 0:00:13]} e6 {[%emt 0:00:34]} 5. Be2 {[%emt 0:00:10]} c5 {[%emt 0:00:34]} 6. O-O {[%emt 0:00:37]} Nc6 {[%emt 0:00:56]} 7. Be3 {[%emt 0:01:41]} Qb6 {[%emt 0:03:19]} 8. b3 {[%emt 0:17:35]} cxd4 {[%emt 0:17:05]} 9. Nxd4 {[%emt 0:00:34]} Nxd4 {[%emt 0:00:24]} 10. Bxd4 {[%emt 0:00:06]} Bc5 {[%emt 0:00:18]} 11. c3 {[%emt 0:00:41]} Ne7 {[%emt 0:01:25]} 12. Bxc5 {[%emt 0:29:52]} Qxc5 {[%emt 0:00:17]} 13. Qd4 {[%emt 0:02:06]} Rc8 {[%emt 0:06:13]} 14. Re1 {[%emt 0:13:11]} O-O {[%emt 0:03:59]} 15. h3 {[%emt 0:09:07]} a6 {[%emt 0:07:48]} 16. b4 {[%emt 0:08:08]} Qxd4 {[%emt 0:02:04]} 17. cxd4 {[%emt 0:00:08]} Nc6 {[%emt 0:00:09]} 18. Rd1 {[%emt 0:03:17]} Nxb4 {[%emt 0:01:14]} 19. a3 {[%emt 0:04:18]} Nc6 {[%emt 0:06:47]} 20. Bd3 {[%emt 0:02:42]} Nxd4 {[%emt 0:02:04]} 21. Bxf5 {[%emt 0:00:09]} Nxf5 {[%emt 0:00:20]} 22. Nd2 {[%emt 0:00:13]} Nd4 {[%emt 0:01:43]} 23. Kf1 {[%emt 0:01:01]} Rc2 {[%emt 0:01:37]} 24. Rab1 {[%emt 0:00:44]} Rfc8 {[%emt 0:01:57]} 25. Nb3 {[%emt 0:01:25]} Nb5 {[%emt 0:01:19]} 26. Nd4 {[%emt 0:00:27]} Nxd4 {[%emt 0:01:36]} 27. Rxd4 {[%emt 0:00:02]} Rc1+ {[%emt 0:00:08]} 28. Rxc1 {[%emt 0:00:09]} Rxc1+ {[%emt 0:00:05]} 29. Ke2 {[%emt 0:00:07]} b5 {[%emt 0:01:33]} 30. a4 {[%emt 0:00:12]} Rc4 {[%emt 0:00:07]} 31. Rxc4 {[%emt 0:01:50]} dxc4 {[%emt 0:00:21]} 32. Kd2 {[%emt 0:00:20]} b4 {[%emt 0:00:11]} 33. g4 {[%emt 0:00:41]} a5 {[%emt 0:00:05]} 34. f4 {[%emt 0:00:05]} Kf8 {[%emt 0:00:06]} 35. f5 {[%emt 0:00:21]} exf5 {[%emt 0:00:05]} 36. gxf5 {[%emt 0:00:04]} Ke7 {[%emt 0:00:05]} 37. Ke3 {[%emt 0:00:20]} b3 {[%emt 0:00:22]} 38. Kd2 {[%emt 0:00:07]} f6 {[%emt 0:00:06]} 39. e6 {[%emt 0:00:04]} g6 {[%emt 0:00:05]} 40. fxg6 {[%emt 0:00:10]} hxg6 {[%emt 0:00:06]} 0-1

[Event "Begum Laila Alam 12th Women 2022"]
[Site "Dhaka"]
[Date "2022.05.07"]
[Round "3.4"]
[White "Omnia Binta Yusuf, Lubaba"]
[Black "Hamid, Rani"]
[Result "0-1"]
[ECO "B22"]
[WhiteElo "1652"]
[BlackElo "1783"]
[Annotator "NA COMBH"]
[PlyCount "86"]
[EventDate "2022.05.05"]
[EventType "swiss"]
[EventCountry "BAN"]
[SourceTitle "playchess.com"]
[Source "ChessBase"]
[SourceQuality "1"]
[TimeControl "5400+30"]

1. e4 {[%emt 0:00:09]} c5 {[%emt 0:00:07]} 2. c3 {[%emt 0:00:06]} e6 {[%emt 0:00:42]} 3. Nf3 {[%emt 0:00:21]} d5 {[%emt 0:00:32]} 4. exd5 {[%emt 0:00:24]} Qxd5 {[%emt 0:00:09]} 5. Na3 {[%emt 0:01:03]} Nc6 {[%emt 0:00:40]} 6. d4 {[%emt 0:01:44]} Nf6 {[%emt 0:00:37]} 7. Bc4 {[%emt 0:03:01]} Qd8 {[%emt 0:01:41]} 8. Nc2 {[%emt 0:04:12]} Be7 {[%emt 0:00:47]} 9. O-O {[%emt 0:01:21]} O-O {[%emt 0:00:09]} 10. dxc5 {[%emt 0:05:31]} Bxc5 {[%emt 0:02:13]} 11. Bg5 {[%emt 0:01:49]} Be7 {[%emt 0:01:01]} 12. Ne3 {[%emt 0:03:34]} Qc7 {[%emt 0:01:05]} 13. Qc2 {[%emt 0:02:34]} b6 {[%emt 0:02:48]} 14. Bd3 {[%emt 0:05:02]} h6 {[%emt 0:00:39]} 15. Bh4 {[%emt 0:00:31]} Bb7 {[%emt 0:00:16]} 16. Bg3 {[%emt 0:00:54]} Bd6 {[%emt 0:00:41]} 17. Bxd6 {[%emt 0:00:28]} Qxd6 {[%emt 0:00:03]} 18. Rad1 {[%emt 0:01:35]} Qc7 {[%emt 0:00:48]} 19. Qe2 {[%emt 0:02:27]} Rad8 {[%emt 0:02:25]} 20. Bc2 {[%emt 0:02:17]} Ne5 {[%emt 0:02:30]} 21. Nd4 {[%emt 0:04:29]} a6 {[%emt 0:01:19]} 22. Rfe1 {[%emt 0:05:23]} b5 {[%emt 0:01:06]} 23. a4 {[%emt 0:02:50]} bxa4 {[%emt 0:02:04]} 24. Bxa4 {[%emt 0:01:50]} Ng6 {[%emt 0:00:23]} 25. g3 {[%emt 0:06:04]} Ne7 {[%emt 0:03:24]} 26. Ng4 {[%emt 0:02:43]} Nxg4 {[%emt 0:03:39]} 27. Qxg4 {[%emt 0:00:17]} Nd5 {[%emt 0:00:16]} 28. Qe2 {[%emt 0:03:41]} Nf6 {[%emt 0:01:09]} 29. Qe5 {[%emt 0:03:00]} Qb6 {[%emt 0:00:51]} 30. Bb3 {[%emt 0:01:31]} Nd7 {[%emt 0:11:03]} 31. Qe3 {[%emt 0:08:46]} e5 {[%emt 0:00:55]} 32. Nf5 {[%emt 0:01:27]} Qxb3 {[%emt 0:00:38]} 33. Nxh6+ {[%emt 0:05:42]} gxh6 {[%emt 0:01:33]} 34. Rd6 {[%emt 0:03:02]} f6 {[%emt 0:03:06]} 35. Red1 {[%emt 0:05:14]} Qc2 {[%emt 0:03:45]} 36. R6d3 {[%emt 0:03:42]} Qa4 {[%emt 0:02:14]} 37. f3 {[%emt 0:01:48]} Kg7 {[%emt 0:01:32]} 38. b3 {[%emt 0:01:49]} Qc6 {[%emt 0:02:07]} 39. c4 {[%emt 0:02:42]} Rf7 {[%emt 0:02:04]} 40. Rd5 {[%emt 0:01:05]} Re8 {[%emt 0:03:09]} 41. c5 {[%emt 0:02:07]} Nxc5 {[%emt 0:02:25]} 42. Rxc5 {[%emt 0:00:46]} Qxf3 {[%emt 0:00:07]} 43. Qxf3 {[%emt 0:02:01]} Bxf3 {[%emt 0:00:08]} 0-1